Cogmind - Beta 14 @@@ ROGUE MODE // 2024.12.06 @ 08:05:12 Player: Dosh Result: Destroyed by Autobeam Turret with Autobeam Performance ------------- Evolutions (0) 0 Regions Visited (2) 400 Robots Destroyed (29) 145 Value Destroyed (986) 986 Prototype IDs (0) 0 Alien Tech Used (0) 0 Bonus (0) 0 TOTAL SCORE: 1531 Bonus ------- None Cogmind --------- Core Integrity 0/250 Matter 209/300 Energy 90/100 System Corruption 0% Temperature Cool (14) Movement Treading (160) Location -10/Subcaves Parts ------- > --- POWER (1) -------- (None) > --- PROPULSION (2) --- Spiked Treads > --- UTILITY (2) ------ Small Storage Unit Light Armor Plating > --- WEAPON (2) ------- Barrage Gun Subdweller Shrapnel Launcher > --- INVENTORY (8) ---- Subdweller Monowheel High-capacity Storage Unit Light Armor Plating Medium Laser Subdweller Beam Cannon Subdweller Beam Cannon Battle Rifle Subdweller Machine Gun Peak State ------------ > --- POWER ------------ Light Ion Engine > --- PROPULSION ------- Light Treads Spiked Treads > --- UTILITY ---------- Small Storage Unit Light Armor Plating > --- WEAPON ----------- Subdweller Beam Cannon Barrage Gun > --- INVENTORY -------- Subdweller Power Source High-capacity Storage Unit Light Armor Plating Medium Laser Subdweller Beam Cannon Subdweller Machine Gun Subdweller Shrapnel Launcher [Rating: 12] Favorites ----------- Power Light Ion Engine Engine Light Ion Engine Propulsion Light Treads Treads Light Treads Utility Small Storage Unit Storage Small Storage Unit Protection Light Armor Plating Weapon Light Cannon Energy Gun Small Laser Energy Cannon Subdweller Beam Cannon Ballistic Gun Subdweller Machine Gun Ballistic Cannon Light Cannon Launcher Subdweller Shrapnel Launcher Build | -11 -10 -10 ------- Run | Yrd Mat Sub Slots Evolved . | . . . Power . | . . . Propulsion . | . . . Utility . | . . . Weapon . | . . . Parts Attached 29 | 6 10 13 Power 6 | 1 2 3 Engine 6 | 1 2 3 Core . | . . . Reactor . | . . . Propulsion 4 | 2 . 2 Treads 4 | 2 . 2 Leg . | . . . Wheel . | . . . Hover . | . . . Flight . | . . . Utility 7 | 1 4 2 Device . | . . . Storage 2 | 1 . 1 Processor . | . . . Hackware . | . . . Protection 5 | . 4 1 Artifact . | . . . Weapon 12 | 2 4 6 Energy Gun 1 | 1 . . Energy Cannon 2 | . . 2 Ballistic Gun 4 | 1 . 3 Ballistic Cannon 4 | . 4 . Launcher 1 | . . 1 Special Weapon . | . . . Impact Weapon . | . . . Slashing Weapon . | . . . Piercing Weapon . | . . . Special Melee Weapon . | . . . Unidentified Prototypes . | . . . Parts Lost 7 | . . 7 Power 2 | . . 2 Propulsion 2 | . . 2 Utility 1 | . . 1 Weapon 2 | . . 2 Highest Loss Streak 4 | . . 4 To Critical Strikes . | . . . Average Slot Usage (%) 94 | . 88 95 Engine 12 | . 13 12 Treads 26 | . 28 26 Storage 14 | . 14 14 Protection 11 | . 3 13 Energy Gun 1 | . 6 . Energy Cannon 6 | . . 7 Ballistic Gun 8 | . 7 9 Ballistic Cannon 11 | . 13 11 Peak Build Rating 12 | 6 7 12 Average Rating 8 | 5 6 9 On Entrance 4 | . 6 7 Naked Turns . | . . . Heaviest Build 25 | 10 17 25 Greatest Support 40 | 40 40 40 Greatest Overweight (x) . | . . . Average Overweight (x) . | . . . Largest Inventory Capacity 20 | 8 8 20 Average Capacity 7 | 7 8 8 Most Carried 8 | 2 8 8 Average Carried 6 | 1 5 6 Final Capacity 8 | 8 8 8 Final Carried 8 | 2 8 8 Class Distribution -------------------- 100% | Mutant Dominant Class ---------------- Mutant | -10/Materials Mutant | -10/Subcaves Resources | -11 -10 -10 ----------- Run | Yrd Mat Sub Matter Collected 928 | 166 343 419 Remotely . | . . . Salvage Created 948 | . 356 592 Parts 53 | . 18 35 Haulers Intercepted 1 | . 1 . Recyclers Shooed . | . . . Parts Field Recycled . | . . . Retrieved Matter . | . . . Parts Self-Destructed 6 | . . 6 Prevented . | . . . Kills | -11 -10 -10 ------- Run | Yrd Mat Sub Combat Hostiles Destroyed 26 | . 9 17 Guns 6 | . 1 5 Cannons 17 | . 8 9 AOE 2 | . . 2 Classes Destroyed 6 | . 5 1 Hauler 1 | . 1 . Operator 1 | . 1 . Watcher 1 | . 1 . Swarmer 2 | . . 2 Grunt 9 | . 7 2 Subdweller 15 | . 2 13 Best Kill Streak 4 | . 4 2 Combat Bots Only 4 | . 4 2 Max Kills in Single Turn 1 | . 1 1 Gunslinging . | . . . Exploded 1 | . . 1 Melee . | . . . Uniques/NPCs Destroyed . | . . . Combat | -11 -10 -10 -------- Run | Yrd Mat Sub Hostile Shots Fired 107 | . 31 76 Missed 35 | . 9 26 Damage Taken 1451 | . 339 1112 Core 253 | . 119 134 Absorbed by Shields . | . . . Core Remaining (%) 100 | 100 . . Volleys Fired 105 | . 38 67 Largest 2 | . 2 2 Hottest 110 | . 70 110 Shots Fired 204 | . 73 131 Gun 76 | . 35 41 Cannon 126 | . 38 88 Launcher 2 | . . 2 Special . | . . . Kinetic 158 | . 57 101 Thermal 46 | . 16 30 Explosive . | . . . Electromagnetic . | . . . Robot Hit Streak 16 | . 13 16 Robot Miss Streak 4 | . 4 3 Penetration Max . | . . . Secondary Targets . | . . . Shots Hit Robots 126 | . 46 80 Core Hits 45 | . 18 27 Critical Kills 2 | . 1 1 Critical Parts Destroyed . | . . . Critical Strikes 5 | . 2 3 Meltdown 1 | . . 1 Destroy 1 | . 1 . Blast 3 | . 1 2 Melee Attacks . | . . . Impact . | . . . Slashing . | . . . Piercing . | . . . Sneak Attacks . | . . . Combat Hostiles . | . . . Follow-up Attacks . | . . . Damage Inflicted 2275 | . 640 1635 Guns 560 | . 195 365 Cannons 1667 | . 444 1223 Explosions 47 | . . 47 Melee . | . . . Ramming 1 | . 1 . Kinetic 1744 | . 536 1208 Thermal 530 | . 103 427 Explosive . | . . . Electromagnetic . | . . . Impact . | . . . Slashing . | . . . Piercing . | . . . Highest Corruption . | . . . Average Corruption . | . . . Corruption Purged . | . . . Corruption Blocked . | . . . Overload Shots . | . . . Overflow Damage . | . . . Projectiles . | . . . Explosions . | . . . Melee . | . . . Knockbacks 13 | . 6 7 Impact . | . . . Kinetic 12 | . 6 6 Secondary 1 | . . 1 Self-Inflicted Damage 21 | . . 21 Shots 1 | . . 1 Rammed 1 | . 1 . Targets Rammed 1 | . 1 . Kicked . | . . . Crushed . | . . . Highest Temperature 268 | . 138 268 Average Temperature 49 | . 35 68 Received Heat Transfer 934 | . 150 784 Siege Activations . | . . . Robots Corrupted . | . . . Combat Hostiles . | . . . Parts Fried . | . . . Impact Corruptions . | . . . Robots Melted 1 | . . 1 Combat Hostiles 1 | . . 1 Parts Melted 4 | . . 4 Heat Transferred 817 | . 225 592 Parts Sabotaged . | . . . Parts Stolen . | . . . Parts Stripped . | . . . Power Chain Reactions . | . . . Alert | -11 -10 -10 ------- Run | Yrd Mat Sub Peak Influence 173 | . 173 . Initial . | . . . Average 36 | . 41 . Maximum Alert Level . | . . . Low Security (%) 100 | 100 100 . Level 1 . | . . . Level 2 . | . . . Level 3 . | . . . Level 4 . | . . . Level 5 . | . . . High Security . | . . . Max Security . | . . . Squads Dispatched 3 | . 3 . Investigation 1 | . 1 . Extermination . | . . . Reinforcement 2 | . 2 . Assault . | . . . Garrison . | . . . Intercept . | . . . Searches Triggered . | . . . Construction Impeded . | . . . Haulers Reinforced . | . . . Active Scanning Responses . | . . . Cargo Convoy Interrupts . | . . . Stealth | -11 -10 -10 --------- Run | Yrd Mat Sub Distress Signals 2 | . 2 . Communications Jammed . | . . . Distress Signals . | . . . Times Spotted 37 | . 17 20 Peak Tracking Total 5 | . 4 5 Tactical Retreats 2 | . 2 . Traps | -11 -10 -10 ------- Run | Yrd Mat Sub Traps Triggered 5 | . 4 1 Indirectly . | . . . Trap Hack Attempts . | . . . Triggered . | . . . Disarmed . | . . . Reprogrammed . | . . . Reused . | . . . Traps Extracted . | . . . Installed . | . . . Triggered 1 | . . 1 Machines | -11 -10 -10 ---------- Run | Yrd Mat Sub Machines Disabled 1 | . . 1 Max in Single Turn 1 | . . 1 Machines Repaired . | . . . Machines Dismantled . | . . . Machines Sabotaged . | . . . Overloaded Fab Kills . | . . . Hacking | -11 -10 -10 --------- Run | Yrd Mat Sub Machines Accessed 2 | . . 2 Terminals . | . . . Fabricators . | . . . Repair Stations . | . . . Recycling Units . | . . . Scanalyzers . | . . . Garrison Access . | . . . Total Hacks 4 | . . 4 Successful 4 | . . 4 Failed . | . . . Catastrophic . | . . . Database Lockouts . | . . . Manual . | . . . Terminals . | . . . Fabricators . | . . . Repair Stations . | . . . Recycling Units . | . . . Scanalyzers . | . . . Garrison Access . | . . . Terminal Hacks 4 | . . 4 Record 3 | . . 3 Open Door 1 | . . 1 Fabricator Hacks . | . . . Repair Station Hacks . | . . . Recycling Unit Hacks . | . . . Scanalyzer . | . . . Garrison Access Hacks . | . . . Unauthorized Hacks . | . . . Terminals . | . . . Fabricators . | . . . Repair Stations . | . . . Recycling Units . | . . . Scanalyzers . | . . . Garrison Access . | . . . Data Cores Recovered . | . . . Used . | . . . Hacking Detections . | . . . Full Trace Events . | . . . Feedback Events . | . . . Feedback Blocked . | . . . Robot Schematics Acquired . | . . . Robots Built . | . . . Authchips . | . . . Time . | . . . Total Robot Build Rating . | . . . Part Schematics Acquired . | . . . Parts Built . | . . . Authchips . | . . . Time . | . . . Total Part Build Rating . | . . . Parts Repaired . | . . . Time . | . . . Parts Recycled . | . . . Recycled Matter . | . . . Retrieved Matter . | . . . Retrieved Components . | . . . Parts Scanalyzed . | . . . Part Schematics Acquired . | . . . Parts Damaged . | . . . Bothacking | -11 -10 -10 ------------ Run | Yrd Mat Sub Used RIF Installer . | . . . Robots Hacked . | . . . Non-combat . | . . . Combat . | . . . Robot Hacks Applied . | . . . Relay Couplers Released . | . . . Fabnet Peak Effective % . | . . . Robots Rewired . | . . . Allies Hacked . | . . . Hacks Repelled . | . . . Allies | -11 -10 -10 -------- Run | Yrd Mat Sub Total Allies . | . . . Largest Group . | . . . Highest-Rated Group . | . . . Highest-Rated Ally . | . . . Total Orders . | . . . Ally Attacks . | . . . Total Damage . | . . . Kills . | . . . Allies Corrupted . | . . . Allies Melted . | . . . Intel | -11 -10 -10 ------- Run | Yrd Mat Sub Robot Analysis Total . | . . . Derelict Logs Recovered 2 | . . 2 Drone Launches . | . . . Drone Recoveries . | . . . Exploration | -11 -10 -10 ------------- Run | Yrd Mat Sub Turns Passed 3725 | 82 716 2927 Spaces Moved 2061 | 48 356 1657 Core 4 | 4 . . Treads 2057 | 44 356 1657 Legs . | . . . Wheels . | . . . Hover . | . . . Flight . | . . . Fastest Speed 50 | 50 160 160 Average Speed 159 | 150 160 160 Slowest Speed 160 | 160 160 160 Overloaded Moves . | . . . Propulsion Burnouts . | . . . Robots Hopped . | . . . Cave-ins Triggered . | . . . Exploration Rate (%) 47 | 4 48 91 Regions Visited 2 Branch Regions 1 Pre-discovered Areas . | . . . Known Exits Taken . | . . . Unknown Exits Taken 2 | 1 1 . Scrap Searched 6 | . . 6 Spaces Dug . | . . . Terrain Destroyed 31 | . . 31 Melee . | . . . Projectile 3 | . . 3 AOE 28 | . . 28 Terrain Rammed . | . . . Walls Destroyed . | . . . Machines Disabled . | . . . Actions | -11 -10 -10 --------- Run | Yrd Mat Sub Total 2287 | 55 430 1802 Wait 73 | . 18 55 Move 2059 | 47 355 1657 Hop . | . . . Pick Up 14 | 2 6 6 Fast Attach 15 | 6 9 . Attach 5 | . . 5 Detach 1 | . 1 . Swap 9 | . 1 8 Drop 5 | . 1 4 Fire 105 | . 38 67 Melee . | . . . Ram . | . . . Kick . | . . . Crush 1 | . 1 . Escape Stasis . | . . . Rewire . | . . . Trap . | . . . Miscellaneous . | . . . Route ------- -11/Scrapyard -10/Materials (discovered 3 exits: [*Mat] / [*Min] / *Sub) -10/Subcaves (discovered 2 exits: [*Mat x2]) History --------- Turn | Location | Event 19 | -11/Scrapyard | Discovered new exit (range 15) 83 | -11/Scrapyard | Entered Materials 115 | -10/Materials | Discovered new exit (range 15) 312 | -10/Materials | Build established: Mutant 344 | -10/Materials | Discovered new exit (range 15) 583 | -10/Materials | Derelicts attacked the area 785 | -10/Materials | Discovered new exit (range 9) 799 | -10/Materials | Entered Subcaves 1018 | -10/Subcaves | Core integrity fell below 50% 1068 | -10/Subcaves | Shifting Twisted Machinery released Sub. Shrapnel Launcher 1074 | -10/Subcaves | Shifting Twisted Machinery released Piercing Trap 1655 | -10/Subcaves | Visited Clippyterm 1660 | -10/Subcaves | Learned Factory fabricator intel 1804 | -10/Subcaves | Shifting Twisted Machinery released Sub. Beam Cannon 1807 | -10/Subcaves | Shifting Twisted Machinery released Spk. Treads 1923 | -10/Subcaves | Discovered new exit (range 15) 2019 | -10/Subcaves | Lost 4 parts (1n1u2w) 2279 | -10/Subcaves | A swath of the cavern ceiling suddenly collapsed 2399 | -10/Subcaves | Core integrity fell below 20% 2462 | -10/Subcaves | Shifting Twisted Machinery released Mak. Flight Unit 2902 | -10/Subcaves | A swath of the cavern ceiling suddenly collapsed 2942 | -10/Subcaves | Learned Materials stockpile data 3016 | -10/Subcaves | Learned Materials trap positions 3037 | -10/Subcaves | Discovered new exit (range 12) 3726 | -10/Subcaves | Destroyed by Autobeam Turret with Autobeam Last Messages --------------- 03222_ Found 48 Matter. 03225_ Searching scrap... 03225_ Found Enh. Flamer. 03225_ Found Sub. Optics. 03225_ Found 46 Matter. 03252_ Acquired Battle Rifle. 03301_ Dropped Broken Sub. Power Source. 03302_ Acquired Sub. Beam Cannon. 03394_ Sub. Beam Cannon shoots sparks and powers down. 03398_ Lgt. Ion Engine destroyed. 03404_ Destroyed Scrap Shield. 03404_ Lgt. Treads destroyed. 03407_ DY-04D(R) destroyed. 03411_ Acquired 40 matter. 03435_ Dropped Broken Sub. Beam Cannon. 03436_ Acquired Sub. Monowheel. 03448_ 1A-R0G(u) tweaks Twisted Machinery. 03653_ YI-UGA(u) tweaks Twisted Machinery. 03724_ S-10 Pest springs to life. 03726_ S-10 Pest destroyed. Map ----- +----------------------------------------------------+ | ????????????????# ## ###?????????????????# & | | ????????????????## ### ##?????????????????### | | ?????????????????# ## ##?????????????????# | | ?????????????????## ##????????????????# | | ??????????????????## #????????????????## # | | ???????????????????## #?????????????????## ## | | ???????????????????## #??????????????????###? | | ??????????????????## #?????????????????????? | | ?????????????????## #?????????????????????? | | ????###?????????## ### #????????????????????? | | ????# #??????### ##??# #???????????????????? | | ????# ##???## ##???? #???????????????????? | | ????# #?## #????? #???????????????????? | | ????# ## ##????####??? s??????????????? | | ?????# #?????? ????????????? | | ?????# ## ## #??###s ????????????# | | ?????#????# ## #?? t""???????????# | | ??????##### #### ### ####; ??????????## | | ????### #??## ##??#### t""??????????# | | ????# ##??######### "??????????# | | ????## ####??# ## ; = ??????????# | | ????# # # ## #### ##; [% ["???????????### | | ????## ####### ## #; *#####???????????? | | ????## ###### ; # ###?????????? | | ????# ## ; ## ##???????## | | ????## # @ ; ## ###????## | | ????## # ## ####?# ##???# | | ????# # ##### #?????# #??## | | ????## ## ##???## #?????# ##?# | | ????# ######?????## ## ##????## ### | | ????# ##????????## #####?????# | | ????## #?????##### #?????????## ### | | ?????# %#####??# #??????????# ##?### | | ????## # ##?# #?????????## ##???## | | ????# % #?## ##???????### #???## "" | | ????#### ##??# #????????# #??## " | | ???????##### "#### ##????????# #??#"" " | | ???????????# "" ##?????????## #??# " " | | ???????????# #???????????## #??# "" """ | | ???????????## ###?????????#### #??###"" | | ????????????# ##??????##### #????### | | ????????????## #??##### ######??????## | | ?????????????## ##??# ##????????????### | | ??????????????# #???# ##???????????????? | | ?????????????## ##???# #????????????????? | | ?????????????# #????# & #????????????????? | | ????????????## #????# ### #????????????????? | | ????????????# ####?##???# ##????????????????? | | ????????????#### ##?????# #?????????????????? | | ???????????????## #?????## ##????????????????? | +----------------------------------------------------+ Best States ------------- Heat Dissipation 25 Energy Generation 15 Energy Capacity 200 Matter Stores 300 Matter Capacity 300 Sight Range 16 Terrain Scan Density 10 Armor Coverage 150 Evasion (%) 40 Recoil Reduction 2 Item Schematics ----------------- None Robot Schematics ------------------ None Fabricated ------------ Nothing Alien Tech Used ----------------- None Achievements -------------- None Challenges ------------ None Game ------ Seed VoltaicHeartSlayer Manual? 0 Play Time 00:16:25 Cumulative 545.6 hours Start 2024.12.06 @ 07:55:31 End 2024.12.06 @ 08:05:12 Sessions 1 Manual Loads 0 Difficulty Rogue Special Mode None Game No. 311 Rogue 311 Adventurer 0 Explorer 0 Win Type - Total 43 Types 29/3/5/1/1/0/2/1/1 Lore% 83 Gallery% 86 Achievement% 86 Wizard Run 0 Options --------- Layout 0 ASCII 0 Keyboard 1 Movement Numpad Keybinds 0 Fullscreen 2 Font 18/SmallcapsGlow Map View 76x50 Zoom Use 0% Tactical HUD 1 Map Filters NONE Filters NONE Steam 1 RUN: 655244c2-94dd-43ec-90b7-38b4dfbc3817